Cogmind - Beta 12 *** ADVENTURER MODE // 2023.08.05 @ 07:40:47 // AFD2019/Pay2Buy Player: Rudolf Result: Destroyed by G-47 Trooper with Particle Gun Performance ------------- Evolutions (2) 1000 Regions Visited (4) 800 Robots Destroyed (21) 105 Value Destroyed (420) 420 Prototype IDs (1) 20 Alien Tech Used (0) 0 Bonus (200) 200 TOTAL SCORE: 2545 Bonus ------- Entered Garrisons 200 Cogmind --------- Core Integrity 0/550 Matter 300/300 Energy 100/100 System Corruption 0% Temperature Cool (19) Movement Hovering (60) Location -8/Garrison Parts ------- > --- POWER (1) -------- (None) > --- PROPULSION (5) --- Gravmag Array > --- UTILITY (3) ------ Improved Signal Interpreter > --- WEAPON (2) ------- (None) > --- INVENTORY (10) --- Angular Momentum Engine Advanced Weight Redist. System Cooled Plasma Cannon Peak State ------------ > --- POWER ------------ Improved Ion Engine > --- PROPULSION ------- Light Treads Improved Treads Armored Treads Advanced Treads > --- UTILITY ---------- Signal Interpreter Improved Signal Interpreter > --- WEAPON ----------- EM Pulse Gun Field Laser > --- INVENTORY -------- (None) [Rating: 19] Favorites ----------- Power Improved Ion Engine Engine Improved Ion Engine Propulsion Light Treads Treads Light Treads Hover Unit Gravmag Array Utility Improved Signal Interpreter Processor Improved Signal Interpreter Weapon Field Laser Energy Gun Field Laser Energy Cannon Cooled Plasma Cannon Build | -11 -10 -9 -8 -8 ------- Run | Jun Mat Mat Mat Gar Slots Evolved 4 | . . 2 2 . Power . | . . . . . Propulsion 3 | . . 2 1 . Utility 1 | . . . 1 . Weapon . | . . . . . Parts Attached 1 | . . 1 . . Power . | . . . . . Engine . | . . . . . Core . | . . . . . Reactor . | . . . . . Propulsion 1 | . . 1 . . Treads 1 | . . 1 . . Leg . | . . . . . Wheel . | . . . . . Hover . | . . . . . Flight . | . . . . . Utility . | . . . . . Device . | . . . . . Storage . | . . . . . Processor . | . . . . . Hackware . | . . . . . Protection . | . . . . . Artifact . | . . . . . Weapon . | . . . . . Energy Gun . | . . . . . Energy Cannon . | . . . . . Ballistic Gun . | . . . . . Ballistic Cannon . | . . . . . Launcher . | . . . . . Special Weapon . | . . . . . Impact Weapon . | . . . . . Slashing Weapon . | . . . . . Piercing Weapon . | . . . . . Special Melee Weapon . | . . . . . Unidentified Prototypes . | . . . . . Parts Lost 1 | . . 1 . . Power . | . . . . . Propulsion 1 | . . 1 . . Utility . | . . . . . Weapon . | . . . . . Highest Loss Streak 1 | . . 1 . . To Critical Strikes . | . . . . . Average Slot Usage (%) 59 | . 100 76 14 9 Engine 7 | . 14 10 . . Treads 17 | . 28 24 . . Processor 19 | . 28 22 11 9 Energy Gun 14 | . 28 19 . . Naked Turns . | . . . . . Heaviest Build 12 | 12 12 12 8 . Greatest Support 85 | 43 43 85 3 20 Greatest Overweight (x) 2 | . . . 2 . Average Overweight (x) . | . . . . . Largest Inventory Capacity 10 | 10 10 10 10 10 Average Capacity 10 | 10 10 10 10 10 Most Carried 3 | . . 1 2 3 Average Carried . | . . . . 2 Final Capacity 10 | 10 10 10 10 10 Final Carried 3 | . . . 2 3 Class Distribution -------------------- 100% | Mutant Dominant Class ---------------- Mutant | -10/Materials Mutant | -9/Materials Mutant | -8/Materials Mutant | -8/Garrison Resources | -11 -10 -9 -8 -8 ----------- Run | Jun Mat Mat Mat Gar Matter Collected 203 | . 15 185 3 . Remotely . | . . . . . Salvage Created 615 | . 85 398 52 80 Parts . | . . . . . Haulers Intercepted 1 | . 1 . . . Recyclers Shooed . | . . . . . Parts Field Recycled . | . . . . . Retrieved Matter . | . . . . . Parts Self-Destructed . | . . . . . Prevented . | . . . . . Kills | -11 -10 -9 -8 -8 ------- Run | Jun Mat Mat Mat Gar Combat Hostiles Destroyed 13 | . . 10 1 2 Melee 2 | . . . . 2 Guns 8 | . . 8 . . Cannons 1 | . . . 1 . AOE 2 | . . 2 . . Classes Destroyed 9 | . 3 5 1 . Worker 1 | . . 1 . . Builder 1 | . . 1 . . Tunneler 1 | . 1 . . . Hauler 1 | . 1 . . . Recycler 1 | . . 1 . . Watcher 3 | . 2 1 . . Swarmer 7 | . . 6 . 1 Grunt 5 | . . 4 . 1 Sentry 1 | . . . 1 . Best Kill Streak 9 | . 4 9 1 1 Combat Bots Only 5 | . . 5 1 1 Max Kills in Single Turn 3 | . 2 3 1 1 Gunslinging 1 | . . 1 . . Exploded 2 | . . 2 . . Melee 1 | . . . . 1 Uniques/NPCs Destroyed . | . . . . . Combat | -11 -10 -9 -8 -8 -------- Run | Jun Mat Mat Mat Gar Damage Taken 1319 | . 115 593 115 496 Core 763 | . 17 196 92 458 Absorbed by Shields 9 | . . . . 9 Core Remaining (%) 81 | 100 93 51 . . Volleys Fired 29 | . 4 19 6 . Largest 2 | . 2 2 1 . Hottest 103 | . 103 103 35 . Shots Fired 52 | . 8 38 6 . Gun 46 | . 8 38 . . Cannon 6 | . . . 6 . Launcher . | . . . . . Special . | . . . . . Kinetic . | . . . . . Thermal 29 | . 4 19 6 . Explosive . | . . . . . Electromagnetic 23 | . 4 19 . . Robot Hit Streak 16 | . 2 12 16 . Robot Miss Streak 1 | . 1 1 . . Penetration Max . | . . . . . Secondary Targets 1 | . . 1 . . Max Gunslinging Chain 1 | . . 1 . . Shots Hit Robots 35 | . 4 27 4 . Core Hits 27 | . 4 14 1 8 Critical Kills . | . . . . . Critical Parts Destroyed . | . . . . . Critical Strikes . | . . . . . Melee Attacks . | . . . . . Impact . | . . . . . Slashing . | . . . . . Piercing . | . . . . . Sneak Attacks . | . . . . . Combat Hostiles . | . . . . . Follow-up Attacks . | . . . . . Damage Inflicted 878 | . 199 503 128 48 Guns 496 | . 74 422 . . Cannons 128 | . . . 128 . Explosions 203 | . 125 78 . . Melee . | . . . . . Ramming 51 | . . 3 . 48 Kinetic . | . . . . . Thermal 447 | . 52 267 128 . Explosive 125 | . 125 . . . Electromagnetic 255 | . 22 233 . . Impact . | . . . . . Slashing . | . . . . . Piercing . | . . . . . Highest Corruption . | . . . . . Average Corruption . | . . . . . Corruption Purged . | . . . . . Corruption Blocked . | . . . . . Overload Shots . | . . . . . Overflow Damage 79 | . 66 10 3 . Projectiles 3 | . . . 3 . Explosions 76 | . 66 10 . . Melee . | . . . . . Knockbacks . | . . . . . Impact . | . . . . . Kinetic . | . . . . . Secondary . | . . . . . Self-Inflicted Damage 44 | . . 23 . 21 Shots 1 | . . 1 . . Rammed 12 | . . 1 . 11 Targets Rammed 12 | . . 1 . 11 Kicked . | . . . . . Crushed . | . . . . . Highest Temperature 180 | . 90 180 . 5 Average Temperature 61 | . 45 66 . 3 Received Heat Transfer 501 | . 66 174 54 207 Siege Activations . | . . . . . Robots Corrupted . | . . . . . Combat Hostiles . | . . . . . Parts Fried . | . . . . . Impact Corruptions . | . . . . . Robots Melted . | . . . . . Combat Hostiles . | . . . . . Parts Melted . | . . . . . Heat Transferred 868 | . 111 557 200 . Parts Sabotaged . | . . . . . Parts Stolen . | . . . . . Parts Stripped . | . . . . . Power Chain Reactions 1 | . . 1 . . Missiles Intercepted . | . . . . . Alert | -11 -10 -9 -8 -8 ------- Run | Jun Mat Mat Mat Gar Peak Influence 340 | . 82 340 252 248 Initial 143 | . . 29 122 143 Average 144 | . 53 177 175 183 Maximum Alert Level 1 | . . 1 1 1 Low Security (%) 64 | 100 100 51 61 46 Level 1 35 | . . 48 38 53 Level 2 . | . . . . . Level 3 . | . . . . . Level 4 . | . . . . . Level 5 . | . . . . . High Security . | . . . . . Max Security . | . . . . . Squads Dispatched 6 | . 1 3 2 . Investigation 5 | . 1 2 2 . Extermination . | . . . . . Reinforcement 1 | . . 1 . . Assault . | . . . . . Garrison . | . . . . . Intercept . | . . . . . Searches Triggered . | . . . . . Construction Impeded . | . . . . . Haulers Reinforced . | . . . . . Active Scanning Responses . | . . . . . Cargo Convoy Interrupts . | . . . . . Stealth | -11 -10 -9 -8 -8 --------- Run | Jun Mat Mat Mat Gar Distress Signals 3 | . . 2 1 . Communications Jammed . | . . . . . Distress Signals . | . . . . . Times Spotted 60 | . 5 23 13 19 Peak Tracking Total 13 | . 2 13 13 13 Tactical Retreats 2 | . . . 1 1 Traps | -11 -10 -9 -8 -8 ------- Run | Jun Mat Mat Mat Gar Traps Triggered 7 | . 1 3 1 2 Indirectly . | . . . . . Trap Hack Attempts . | . . . . . Triggered . | . . . . . Disarmed . | . . . . . Reprogrammed . | . . . . . Reused . | . . . . . Traps Extracted . | . . . . . Installed . | . . . . . Triggered . | . . . . . Machines | -11 -10 -9 -8 -8 ---------- Run | Jun Mat Mat Mat Gar Machines Disabled 4 | . 2 1 1 . Max in Single Turn 2 | . 2 1 1 . Machines Repaired . | . . . . . Machines Sabotaged . | . . . . . Overloaded Fab Kills . | . . . . . Hacking | -11 -10 -9 -8 -8 --------- Run | Jun Mat Mat Mat Gar Machines Accessed 10 | . 3 3 3 1 Terminals 9 | . 3 3 2 1 Fabricators . | . . . . . Repair Stations . | . . . . . Recycling Units . | . . . . . Scanalyzers . | . . . . . Garrison Access 1 | . . . 1 . Total Hacks 34 | . 11 14 6 3 Successful 11 | . 3 5 3 . Failed 23 | . 8 9 3 3 Catastrophic 5 | . 3 . 2 . Database Lockouts . | . . . . . Manual 22 | . 10 8 4 . Terminals 33 | . 11 14 5 3 Fabricators . | . . . . . Repair Stations . | . . . . . Recycling Units . | . . . . . Scanalyzers . | . . . . . Garrison Access 1 | . . . 1 . Terminal Hacks 10 | . 3 5 2 . Record 7 | . 2 3 2 . Robot Analysis 2 | . 1 1 . . Hauler Manifests 1 | . . 1 . . Fabricator Hacks . | . . . . . Repair Station Hacks . | . . . . . Recycling Unit Hacks . | . . . . . Scanalyzer . | . . . . . Garrison Access Hacks 1 | . . . 1 . Unlock Access 1 | . . . 1 . Unauthorized Hacks . | . . . . . Terminals . | . . . . . Fabricators . | . . . . . Repair Stations . | . . . . . Recycling Units . | . . . . . Scanalyzers . | . . . . . Garrison Access . | . . . . . Data Cores Recovered . | . . . . . Used . | . . . . . Hacking Detections 10 | . 3 3 3 1 Full Trace Events 9 | . 3 3 2 1 Feedback Events . | . . . . . Feedback Blocked . | . . . . . Robot Schematics Acquired . | . . . . . Robots Built . | . . . . . Authchips . | . . . . . Time . | . . . . . Total Robot Build Rating . | . . . . . Part Schematics Acquired . | . . . . . Parts Built . | . . . . . Authchips . | . . . . . Time . | . . . . . Total Part Build Rating . | . . . . . Parts Repaired . | . . . . . Time . | . . . . . Parts Recycled . | . . . . . Recycled Matter . | . . . . . Retrieved Matter . | . . . . . Retrieved Components . | . . . . . Parts Scanalyzed . | . . . . . Part Schematics Acquired . | . . . . . Parts Damaged . | . . . . . Bothacking | -11 -10 -9 -8 -8 ------------ Run | Jun Mat Mat Mat Gar Used RIF Installer . | . . . . . Robots Hacked . | . . . . . Non-combat . | . . . . . Combat . | . . . . . Robot Hacks Applied . | . . . . . Relay Couplers Released . | . . . . . Fabnet Peak Effective % . | . . . . . Robots Rewired . | . . . . . Allies Hacked . | . . . . . Hacks Repelled . | . . . . . Allies | -11 -10 -9 -8 -8 -------- Run | Jun Mat Mat Mat Gar Total Allies . | . . . . . Largest Group . | . . . . . Highest-Rated Group . | . . . . . Highest-Rated Ally . | . . . . . Total Orders . | . . . . . Ally Attacks . | . . . . . Total Damage . | . . . . . Kills . | . . . . . Allies Corrupted . | . . . . . Allies Melted . | . . . . . Intel | -11 -10 -9 -8 -8 ------- Run | Jun Mat Mat Mat Gar Robot Analysis Total 2 | . 1 1 . . Derelict Logs Recovered . | . . . . . Drone Launches . | . . . . . Drone Recoveries . | . . . . . Exploration | -11 -10 -9 -8 -8 ------------- Run | Jun Mat Mat Mat Gar Turns Passed 643 | 32 126 288 99 98 Spaces Moved 498 | 20 72 155 150 101 Core 264 | . . 19 150 95 Treads 228 | 20 72 136 . . Legs . | . . . . . Wheels . | . . . . . Hover 6 | . . . . 6 Flight . | . . . . . Fastest Speed 50 | 160 160 50 50 50 Average Speed 101 | 160 160 145 54 50 Slowest Speed 165 | 160 160 165 150 60 Overloaded Moves . | . . . . . Propulsion Burnouts . | . . . . . Robots Hopped . | . . . . . Cave-ins Triggered . | . . . . . Exploration Rate (%) 19 | 3 23 22 25 24 Regions Visited 4 Branch Regions . Pre-discovered Areas . | . . . . . Known Exits Taken 4 | 1 1 1 1 . Unknown Exits Taken . | . . . . . Scrap Searched . | . . . . . Spaces Dug . | . . . . . Terrain Destroyed 27 | . 24 2 1 . Melee . | . . . . . Projectile 1 | . . . 1 . AOE 26 | . 24 2 . . Terrain Rammed . | . . . . . Walls Destroyed . | . . . . . Machines Disabled . | . . . . . Actions | -11 -10 -9 -8 -8 --------- Run | Jun Mat Mat Mat Gar Total 584 | 20 75 179 162 148 Wait 7 | 1 . 1 5 . Move 494 | 19 71 154 149 101 Hop . | . . . . . Pick Up 1 | . . 1 . . Fast Attach . | . . . . . Attach 1 | . . 1 . . Detach 3 | . . . 2 1 Swap . | . . . . . Drop 2 | . . 2 . . Fire 29 | . 4 19 6 . Melee . | . . . . . Ram 11 | . . . . 11 Kick . | . . . . . Crush 1 | . . 1 . . Escape Stasis 29 | . . . . 29 Rewire 6 | . . . . 6 Trap . | . . . . . Miscellaneous . | . . . . . Route ------- -11/Junkyard -10/Materials -9/Materials -8/Materials -8/Garrison History --------- Turn | Location | Event 9 | -11/Junkyard | Discovered new exit (range 13) 31 | -11/Junkyard | Identified exit to Materials 33 | -11/Junkyard | Entered Materials 119 | -10/Materials | Discovered new exit (range 3) 157 | -10/Materials | Identified exit to Materials 159 | -10/Materials | Entered another Materials area 159 | -9/Materials | Evolved 2 slots: Propulsion x2 300 | -9/Materials | Build established: Mutant 443 | -9/Materials | Discovered new exit (range 9) 447 | -9/Materials | Identified exit to Materials 447 | -9/Materials | Entered another Materials area 447 | -8/Materials | Evolved 2 slots: Propulsion x1, Utility x1 546 | -8/Materials | Identified exit to Garrison 546 | -8/Materials | Entered Garrison 576 | -8/Garrison | Triggered checkpoint 631 | -8/Garrison | Triggered checkpoint 633 | -8/Garrison | Core integrity fell below 50% 640 | -8/Garrison | Core integrity fell below 20% 644 | -8/Garrison | Destroyed by G-47 Trooper with Particle Gun Last Messages --------------- Garrison Door activated. 00630_ Slammed into G-47 Trooper. 00630_ G-47 Trooper destroyed. 00631_ Slammed into G-47 Trooper. 00631_ Destabilizing: System interference. 00631_ Imp. Signal Interpreter temporarily disabled. 00632_ Slammed into G-47 Trooper. 00632_ Destabilizing: Core damaged (-11). [DISCOUNT: For the next 66 turns enjoy 50% off any Slashing Weapon!] 00638_ Slammed into G-47 Trooper. 00638_ Critical hit (Burn: +37). 00639_ Slammed into G-47 Trooper. 00639_ Penetrated by Slug. 00639_ Critical hit (Burn: +37). Garrison Door activated. 00640_ Slammed into G-47 Trooper. 00640_ G-47 Trooper destroyed. 00640_ S-10 Pest destroyed. [You open your loot box...] [Congratulations on your very own Gravmag Array!] Map ----- +----------------------------------------------------+ | ????????????????????????????#######????????# #???# | | ???????????????????????????????????????????# #???# | | ?????????????????????????????????????????### ##### | | ?????????????????????????????????????????# | | ?????????????????????????????????????????# | | ?????????????????????????????????????????# ###### | | ?????????????????????????????????????????# #????? | | ?????????????????????????????????????????# #????? | | ?????????????????????????????????????????# #????? | | ?????????????????????????????????????????# #????? | | ?????????????????????????????????????????# #????? | | ?????????????????????????????????????????# #????? | | ????????????????????????######???????????# #????? | | ????????????????????????# #???????????# #????? | | ???????????????????###### ######??????# #????? | | ?????????????####### %" ######## #????? | | ?????????????? Y " #????? | | ????????????????? h #????? | | ???????????????????# ?# %% ## ###########????? | | ?????????????????### ## % ## ###????????????? | | ?????????????????# g % % #????????????? | | ?????????????????# g g%g #????????????? | | ?????????????????# % #????????????? | | ?????????????????# #????????????? | | ?????????????????### ## ## ###????????????? | | ???????????????????# ?#@ ## #??????????????? | | ?????????????????? ? d #??????????????? | | ???????????????? #??????????????? | | ???????????????##### #??????????????? | | ???????????????????## ## i ## ##??????????????? | | ????????????????????# ?# ## #???????????????? | | ????????????????????# ??####### #???????????????? | | ????????????????????# ????????# #???????????????? | | ????????????????????#?????????# #???????????????? | | ??????????????????????????????# #???????????????? | | ??????????????????????????????# #???????????????? | | ??????????????????????????????? ????????????????? | | ?????????????????????????????????????????????????? | | ?????????????????????????????????????????????????? | | ?????????????????????????????????????????????????? | | ?????????????????????????????????????????????????? | | ?????????????????????????????????????????????????? | | ?????????????????????????????????????????????????? | | ?????????????????????????????????????????????????? | | ?????????????????????????????????????????????????? | | ?????????????????????????????????????????????????? | | ?????????????????????????????????????????????????? | | ?????????????????????????????????????????????????? | | ?????????????????????????????????????????????????? | | ?????????????????????????????????????????????????? | +----------------------------------------------------+ Best States ------------- Heat Dissipation 31 Energy Generation 12 Energy Capacity 265 Matter Stores 300 Matter Capacity 300 Sight Range 16 Terrain Scan Density 10 Resistance: KI 20 Resistance: TH 20 Resistance: EX 20 Resistance: EM 20 Resistance: I 20 Resistance: S 20 Resistance: P 20 Evasion (%) 50 Recoil Reduction 4 Offensive Hacking 10 Item Schematics ----------------- None Robot Schematics ------------------ None Fabricated ------------ Nothing Alien Tech Used ----------------- None Achievements -------------- Fist Fight Shopping List Challenges ------------ None Cogshop Purchases (15) ------------------------ Imp. Signal Interpreter (Loot Box) Field Laser (Loot Box) Signal Interpreter (Loot Box) Lgt. Treads (Loot Box) EM Pulse Gun (Loot Box) Imp. Ion Engine (699) Imp. Treads (874) Arm. Treads (1049) Adv. Treads (1049) Plasma Cutter (533) Plasma Cutter (533) Cld. Plasma Cannon (Loot Box) Adv. Weight Redist. System (Loot Box) Angular Momentum Engine (Loot Box) Gravmag Array (Loot Box) Game ------ Seed FlightRefineryCasing Manual? 0 Play Time 00:19:43 Cumulative 5.5 hours Start 2023.08.05 @ 07:22:46 End 2023.08.05 @ 07:40:47 Sessions 1 Manual Loads 0 Difficulty Adventurer Special Mode AFD2019/Pay2Buy Game No. 4 Rogue 0 Adventurer 4 Explorer 0 Win Type - Total 0 Types 0/0/0/0/0/0/0/0/0 Lore% 14 Gallery% 19 Achievement% 15 Wizard Run 0 Options --------- ASCII 1 Keyboard 0 Movement Numpad Keybinds 0 Fullscreen 1 Font 18/Terminus Map View 76x50 Tactical HUD 1 Map Filters NONE Filters NONE Steam 1 RUN: 7fb7f684-6c8f-48de-9e1a-51df9eb8ed58